fUST/lending_fUST_20250718
["ID","MTS","AMOUNT","RATE_DAILY","PERIOD"]
[372817588,1752771043878,-460.0,0.00017057,2]
[372817590,1752771043887,-466.63479276,0.00017057,2]
[372817592,1752771043896,-460.0,0.00017057,2]
[372817594,1752771043906,-513.95499484,0.00017057,2]
[372817596,1752771043915,-460.0,0.00017057,2]
[372817598,1752771043924,-460.0,0.00017057,2]
[372817600,1752771043934,-460.0,0.00017057,2]
[372817602,1752771043943,-460.0,0.00017057,2]
[372817604,1752771043953,-460.0,0.00017057,2]
[372817606,1752771043962,-460.0,0.00017057,2]
[372817608,1752771043971,-460.0,0.00017057,2]
[372817610,1752771043981,-460.0,0.00017057,2]
[372817612,1752771043990,-476.07033655,0.00017057,2]
[372817614,1752771043999,-463.71353092,0.00017057,2]
[372817616,1752771044008,-460.0,0.00017057,2]
[372817619,1752771044019,-460.0,0.00017057,2]
[372817621,1752771044029,-460.0,0.00017057,2]
[372817623,1752771044039,-460.0,0.00017057,2]
[372817625,1752771044048,-460.0,0.00017057,2]
[372817627,1752771044057,-460.0,0.00017057,2]
[372817629,1752771044067,-460.0,0.00017057,2]
[372817631,1752771044076,-460.0,0.00017057,2]
[372817633,1752771044088,-460.0,0.00017057,2]
[372817635,1752771044097,-460.0,0.00017057,2]
[372817637,1752771044106,-460.0,0.00017057,2]
[372817639,1752771044115,-460.0,0.00017057,2]
[372817640,1752771044124,-460.0,0.00017057,2]
[372817641,1752771044134,-460.0,0.00017057,2]
[372817644,1752771044144,-576.13,0.00017057,2]
[372817646,1752771044153,-600.05347299,0.00017057,2]
[372817647,1752771044163,-460.0,0.00017057,2]
[372817650,1752771044173,-988.44,0.00017057,2]
[372817652,1752771044182,-460.0,0.00017057,2]
[372817654,1752771044192,-970.87,0.00017057,2]
[372817656,1752771044201,-460.0,0.00017057,2]
[372817658,1752771044210,-560.4101698,0.00017057,2]
[372817660,1752771044219,-460.0,0.00017057,2]
[372817662,1752771044229,-460.0,0.00017057,2]
[372817664,1752771044238,-460.0,0.00017057,2]
[372817666,1752771044248,-460.0,0.00017057,2]
[372817668,1752771044257,-460.0,0.00017057,2]
[372817669,1752771044266,-460.0,0.00017057,2]
[372817671,1752771044275,-409.2,0.00017057,2]
[372817673,1752771044284,-1228.61,0.00017057,2]
[372817675,1752771044293,-460.0,0.00017057,2]
[372817677,1752771044302,-460.0,0.00017057,2]
[372817679,1752771044311,-460.0,0.00017057,2]
[372817681,1752771044320,-460.0,0.00017057,2]
[372817683,1752771044329,-460.0,0.00017057,2]
[372817685,1752771044339,-460.0,0.00017057,2]
[372817687,1752771044348,-460.0,0.00017057,2]
[372817689,1752771044357,-477.97,0.00017057,2]
[372817691,1752771044367,-460.0,0.00017057,2]
[372817693,1752771044376,-1899.35,0.00017057,2]
[372817695,1752771044385,-2094.79,0.00017057,2]
[372817697,1752771044395,-469.47093368,0.00017057,2]
[372817699,1752771044404,-460.0,0.00017057,2]
[372817701,1752771044413,-460.0,0.00017058,2]
[372817703,1752771044421,-460.0,0.00017058,2]
[372817705,1752771044430,-460.0,0.00017058,2]
[372817707,1752771044439,-460.0,0.00017058,2]
[372817709,1752771044448,-500.0,0.00017096,2]
[372817711,1752771044457,-7308.93380905,0.0001721,2]
[372817713,1752771044465,-500.0,0.00017211,2]
[372817715,1752771044474,-500.36556923,0.00017211,2]
[372817717,1752771044483,-500.0,0.00017211,2]
[372817719,1752771044492,-460.0,0.00017226,2]
[372817721,1752771044501,-460.0,0.00017227,2]
[372817723,1752771044509,-460.0,0.00017227,2]
[372817725,1752771044518,-460.0,0.00017227,2]
[372817727,1752771044527,-460.0,0.00017227,2]
[372817729,1752771044538,-1089.37,0.00017227,2]
[372817731,1752771044547,-2430.98,0.00017227,2]
[372817733,1752771044557,-460.0,0.00017229,2]
[372817735,1752771044566,-460.0,0.00017229,2]
[372817737,1752771044575,-1263.27,0.00017229,2]
[372817739,1752771044584,-460.0,0.00017229,2]
[372817741,1752771044594,-1626.4,0.0001723,2]
[372817743,1752771044603,-460.0,0.0001723,2]
[372817745,1752771044613,-460.0,0.0001723,2]
[372817747,1752771044622,-1408.43,0.0001723,2]
[372817748,1752771044631,-460.0,0.0001723,2]
[372817750,1752771044638,-628.89,0.0001723,2]
[372817753,1752771044647,-460.0,0.0001723,2]
[372817755,1752771044655,-460.0,0.0001723,2]
[372817757,1752771044663,-460.0,0.0001723,2]
[372817758,1752771044670,-460.0,0.00017231,2]
[372817761,1752771044678,-485.52,0.00017231,2]
[372817763,1752771044688,-460.0,0.00017231,2]
[372817764,1752771044696,-460.0,0.00017231,2]
[372817766,1752771044703,-460.0,0.00017231,2]
[372817769,1752771044712,-460.0,0.00017231,2]
[372817771,1752771044721,-460.0,0.00017231,2]
[372817772,1752771044728,-460.0,0.00017231,2]
[372817774,1752771044737,-460.0,0.00017231,2]
[372817777,1752771044745,-460.0,0.00017231,2]
[372817779,1752771044753,-460.0,0.00017231,2]
[372817781,1752771044761,-460.0,0.00017231,2]
[372817783,1752771044770,-451.47142411,0.00017231,2]
[372817785,1752771044777,-460.0,0.00017231,2]
[372817787,1752771044786,-460.0,0.00017231,2]
[372817789,1752771044794,-460.0,0.00017231,2]
[372817791,1752771044802,-460.0,0.00017231,2]
[372817793,1752771044809,-460.0,0.00017231,2]
[372817795,1752771044818,-460.0,0.00017231,2]
[372817797,1752771044826,-460.0,0.00017231,2]
[372817799,1752771044834,-460.0,0.00017231,2]
[372817801,1752771044842,-460.0,0.00017231,2]
[372817803,1752771044851,-500.84310535,0.00017236,2]
[372817805,1752771044860,-500.0,0.00017236,2]
[372817807,1752771044867,-326.09313373,0.00017236,2]
[372817809,1752771044875,-460.0,0.00017331,2]
[372817811,1752771044882,-460.0,0.00017331,2]
[372817813,1752771044891,-460.0,0.00017331,2]
[372817815,1752771044900,-460.0,0.00017331,2]
[372817817,1752771044909,-460.0,0.00017331,2]
[372817819,1752771044918,-460.0,0.00017331,2]
[372817821,1752771044928,-460.0,0.00017331,2]
[372817823,1752771044937,-460.0,0.00017331,2]
[372817825,1752771044946,-460.0,0.00017331,2]
[372817827,1752771044955,-460.0,0.00017331,2]
[372817829,1752771044964,-460.0,0.00017331,2]
[372817831,1752771044973,-460.0,0.00017331,2]
[372817833,1752771044982,-508.47,0.00017331,2]
[372817835,1752771044991,-247.7883824,0.00017331,2]
[372817837,1752771045001,-286.41627651,0.00017331,2]
[372817839,1752771045010,-460.0,0.00017331,2]
[372817841,1752771045020,-460.0,0.00017331,2]
[372817843,1752771045030,-460.0,0.00017331,2]
[372817845,1752771045040,-460.0,0.00017331,2]
[372817847,1752771045050,-460.0,0.00017331,2]
[372817849,1752771045060,-460.0,0.00017331,2]
[372817851,1752771045069,-576.13,0.00017331,2]
[372817853,1752771045079,-460.0,0.00017331,2]
[372817855,1752771045088,-988.44,0.00017331,2]
[372817857,1752771045098,-970.87,0.00017331,2]
[372817859,1752771045107,-460.0,0.00017331,2]
[372817861,1752771045117,-460.0,0.00017331,2]
[372817863,1752771045126,-460.0,0.00017331,2]
[372817865,1752771045136,-1228.61,0.00017331,2]
[372817867,1752771045146,-460.0,0.00017331,2]
[372817870,1752771045156,-463.35653965,0.00017331,2]
[372817872,1752771045165,-460.0,0.00017331,2]
[372817873,1752771045174,-460.0,0.00017331,2]
[372817876,1752771045184,-460.0,0.00017331,2]
[372817878,1752771045194,-477.97,0.00017331,2]
[372817879,1752771045203,-1899.35,0.00017331,2]
[372817882,1752771045213,-2094.79,0.00017331,2]
[372817884,1752771045223,-460.0,0.00017331,2]
[372817886,1752771045232,-460.0,0.00017332,2]
[372817888,1752771045241,-460.0,0.00017332,2]
[372817889,1752771045250,-460.0,0.00017332,2]
[372817891,1752771045260,-500.0,0.00017344,2]
[372817894,1752771045270,-151.0,0.00017344,2]
[372817896,1752771045279,-500.0,0.00017416,2]
[372817898,1752771045288,-500.0,0.00017416,2]
[372817900,1752771045297,-482.90263552,0.00017416,2]
[372817902,1752771045307,-460.0,0.00017501,2]
[372817904,1752771045316,-460.0,0.00017501,2]
[372817906,1752771045325,-460.0,0.00017501,2]
[372817908,1752771045335,-1089.37,0.00017501,2]
[372817910,1752771045346,-2430.98,0.00017501,2]
[372817912,1752771045355,-460.0,0.00017503,2]
[372817914,1752771045364,-460.0,0.00017503,2]
[372817916,1752771045374,-1263.27,0.00017503,2]
[372817917,1752771045385,-460.0,0.00017503,2]
[372817919,1752771045395,-1626.4,0.00017504,2]
[372817921,1752771045404,-460.0,0.00017504,2]
[372817923,1752771045413,-1408.43,0.00017504,2]
[372817925,1752771045422,-460.0,0.00017504,2]
[372817927,1752771045431,-628.89,0.00017504,2]
[372817929,1752771045441,-460.0,0.00017504,2]
[372817932,1752771045451,-460.0,0.00017504,2]
[372817934,1752771045461,-460.0,0.00017504,2]
[372817936,1752771045470,-460.0,0.00017505,2]
[372817938,1752771045479,-485.52,0.00017505,2]
[372817940,1752771045488,-460.0,0.00017505,2]
[372817942,1752771045497,-460.0,0.00017505,2]
[372817944,1752771045507,-473.94,0.00017505,2]
[372817945,1752771045516,-460.0,0.00017505,2]
[372817947,1752771045530,-460.0,0.00017505,2]
[372817949,1752771045539,-460.0,0.00017505,2]
[372817951,1752771045548,-460.0,0.00017505,2]
[372817953,1752771045557,-460.0,0.00017505,2]
[372817955,1752771045567,-460.0,0.00017505,2]
[372817957,1752771045576,-460.0,0.00017505,2]
[372817959,1752771045585,-460.0,0.00017505,2]
[372817962,1752771045597,-460.0,0.00017505,2]
[372817964,1752771045606,-460.0,0.00017505,2]
[372817965,1752771045616,-460.0,0.00017505,2]
[372817968,1752771045625,-460.0,0.00017505,2]
[372817970,1752771045635,-800.0,0.0001752,2]
[372817972,1752771045645,-7308.93380905,0.00017521,2]
[372817974,1752771045655,-460.0,0.00017605,2]
[372817976,1752771045665,-460.0,0.00017605,2]
[372817978,1752771045674,-460.0,0.00017605,2]
[372817980,1752771045683,-460.0,0.00017605,2]
[372817982,1752771045692,-470.10029292,0.00017605,2]
[372817984,1752771045701,-460.0,0.00017605,2]
[372817986,1752771045710,-460.0,0.00017605,2]
[372817987,1752771045719,-460.0,0.00017605,2]
[372817989,1752771045728,-460.0,0.00017605,2]
[372817992,1752771045738,-576.13,0.00017605,2]
[372817994,1752771045748,-988.44,0.00017605,2]
[372817996,1752771045757,-970.87,0.00017605,2]
[372817998,1752771045767,-460.0,0.00017605,2]
[372818013,1752771045894,-460.0,0.00017605,2]
[372818015,1752771045904,-1228.61,0.00017605,2]
[372818017,1752771045914,-460.0,0.00017605,2]
[372818019,1752771045923,-460.0,0.00017605,2]
[372818021,1752771045932,-460.0,0.00017605,2]
[372818023,1752771045941,-477.97,0.00017605,2]
[372818025,1752771045951,-2094.79,0.00017605,2]
[372818027,1752771045960,-1899.35,0.00017605,2]
[372818029,1752771045970,-460.0,0.00017605,2]
[372818031,1752771045980,-460.0,0.00017606,2]
[372818033,1752771045989,-324.71920963,0.00017608,2]
[372818035,1752771045998,-1298.87683854,0.00017608,2]
[372818037,1752771046007,-2922.47288671,0.00017608,2]
[372818039,1752771046016,-5195.50735415,0.00017608,2]
[372818041,1752771046025,-8117.98024086,0.00017608,2]
[372818043,1752771046034,-11689.89154684,0.00017608,2]
[372818045,1752771046043,-500.0,0.00017644,2]
[372818047,1752771046052,-500.0,0.00017759,2]
[372818050,1752771046062,-460.0,0.00017775,2]
[372818051,1752771046071,-460.0,0.00017775,2]
[372818053,1752771046081,-460.0,0.00017775,2]
[372818056,1752771046092,-1089.37,0.00017775,2]
[372818059,1752771046102,-2430.98,0.00017775,2]
[372818061,1752771046112,-460.0,0.00017777,2]
[372818063,1752771046122,-1263.27,0.00017777,2]
[372818065,1752771046131,-1626.4,0.00017778,2]
[372818066,1752771046141,-460.0,0.00017778,2]
[372818067,1752771046150,-1408.43,0.00017778,2]
[372818069,1752771046160,-460.0,0.00017778,2]
[372818071,1752771046169,-628.89,0.00017778,2]
[372818073,1752771046179,-460.0,0.00017778,2]
[372818074,1752771046189,-460.0,0.00017778,2]
[372818077,1752771046199,-460.0,0.00017778,2]
[372818079,1752771046208,-1000.0,0.00017779,2]
[372818081,1752771046219,-460.00191781,0.00017779,2]
[372818083,1752771046228,-485.52,0.00017779,2]
[372818085,1752771046237,-318.28,0.00017779,2]
[372818087,1752771046247,-460.0,0.00017779,2]
[372818089,1752771046256,-460.0,0.00017779,2]
[372818091,1752771046265,-460.0,0.00017779,2]
[372818093,1752771046274,-460.0,0.00017779,2]
[372818095,1752771046284,-460.0,0.00017779,2]
[372818097,1752771046293,-460.0,0.00017779,2]
[372818099,1752771046302,-460.0,0.00017779,2]
[372818101,1752771046311,-460.0,0.00017779,2]
[372818103,1752771046320,-460.0,0.00017779,2]
[372818105,1752771046329,-460.0,0.00017779,2]
[372818107,1752771046341,-460.0,0.00017779,2]
[372818109,1752771046350,-1000.0,0.00017784,2]
[372818111,1752771046358,-7308.93380905,0.00017831,2]
[372818113,1752771046367,-160.0,0.00017863,2]
[372818115,1752771046377,-460.0,0.00017879,2]
[372818117,1752771046386,-460.0,0.00017879,2]
[372818119,1752771046396,-460.0,0.00017879,2]
[372818120,1752771046405,-460.0,0.00017879,2]
[372818122,1752771046414,-460.0,0.00017879,2]
[372818124,1752771046424,-460.0,0.00017879,2]
[372818126,1752771046433,-460.0,0.00017879,2]
[372818129,1752771046443,-576.13,0.00017879,2]
[372818131,1752771046452,-988.44,0.00017879,2]
[372818133,1752771046461,-970.87,0.00017879,2]
[372818135,1752771046471,-460.0,0.00017879,2]
[372818137,1752771046481,-460.0,0.00017879,2]
[372818139,1752771046490,-1228.61,0.00017879,2]
[372818141,1752771046499,-460.0,0.00017879,2]
[372818143,1752771046509,-460.0,0.00017879,2]
[372818145,1752771046518,-460.0,0.00017879,2]
[372818147,1752771046529,-477.97,0.00017879,2]
[372818149,1752771046538,-2094.79,0.00017879,2]
[372818151,1752771046548,-1899.35,0.00017879,2]
[372818152,1752771046557,-460.0,0.00017879,2]
[372818154,1752771046568,-474.2809555,0.0001788,2]
[372818157,1752771046577,-207.20524822,0.00017892,2]
[372818159,1752771046587,-1000.0,0.00017964,2]
[372818161,1752771046598,-1000.0,0.00017964,2]
[372818163,1752771046611,-350.42,0.00018044,3]
[372818164,1752771046622,-460.0,0.00018049,2]
[372818167,1752771046631,-460.0,0.00018049,2]
[372818169,1752771046641,-150.69,0.00018049,2]
[372818171,1752771046650,-1089.37,0.00018049,2]
[372818172,1752771046660,-1263.27,0.00018051,2]
[372818174,1752771046670,-1626.4,0.00018052,2]
[372818177,1752771046681,-460.0,0.00018052,2]
[372818179,1752771046692,-1408.43,0.00018052,2]
[372818180,1752771046702,-628.89,0.00018052,2]
[372818183,1752771046712,-460.0,0.00018052,2]
[372818185,1752771046722,-460.0,0.00018052,2]
[372818187,1752771046734,-485.52,0.00018053,2]
[372818189,1752771046743,-460.0,0.00018053,2]
[372818191,1752771046752,-479.57,0.00018053,2]
[372818193,1752771046761,-460.0,0.00018053,2]
[372818195,1752771046771,-460.0,0.00018053,2]
[372818197,1752771046780,-460.0,0.00018053,2]
[372818199,1752771046791,-460.0,0.00018053,2]
[372818201,1752771046800,-460.0,0.00018053,2]
[372818203,1752771046809,-700.84,0.00018133,3]
[372818205,1752771046819,-160.0,0.00018138,2]
[372818207,1752771046829,-7308.93380905,0.00018141,2]
[372818209,1752771046838,-160.0,0.00018143,2]
[372818212,1752771046848,-160.0,0.00018143,2]
[372818215,1752771046857,-160.0,0.00018143,2]
[372818218,1752771046867,-12607.95677342,0.00018143,2]
[372818220,1752771046877,-839.15451687,0.00018143,2]
[372818222,1752771046886,-160.0,0.00018143,2]
[372818224,1752771046896,-214.44804168,0.00018143,2]
[372818226,1752771046905,-476.16111942,0.00018143,2]
[372818228,1752771046914,-215.59244943,0.00018143,2]
[372818230,1752771046923,-525.67742785,0.00018143,2]
[372818232,1752771046932,-160.0,0.00018143,2]
[372818234,1752771046942,-160.0,0.00018143,2]
[372818236,1752771046951,-230.85589339,0.00018143,2]
[372818238,1752771046961,-2098.44,0.00018143,3]
[372818240,1752771046970,-1401.68,0.00018143,3]
[372818242,1752771046980,-160.0,0.00018145,2]
[372818244,1752771046989,-160.0,0.00018145,2]
[372818246,1752771046998,-160.0,0.00018145,2]
[372818248,1752771047008,-460.0,0.00018153,2]
[372818250,1752771047017,-460.0,0.00018153,2]
[372818252,1752771047028,-448.38,0.00018153,2]
[372818254,1752771047037,-460.0,0.00018153,2]
[372818256,1752771047046,-576.13,0.00018153,2]
[372818258,1752771047055,-988.44,0.00018153,2]
[372818260,1752771047065,-970.87,0.00018153,2]
[372818262,1752771047074,-460.0,0.00018153,2]
[372818264,1752771047084,-460.0,0.00018153,2]
[372818266,1752771047096,-1228.61,0.00018153,2]
[372818268,1752771047105,-460.0,0.00018153,2]
[372818270,1752771047114,-259.3,0.00018153,2]
[372818272,1752771047124,-460.0,0.00018153,2]
[372818274,1752771047134,-477.97,0.00018153,2]
[372818276,1752771047144,-2094.79,0.00018153,2]
[372818278,1752771047153,-1899.35,0.00018153,2]
[372818280,1752771047163,-460.0,0.00018153,2]
[372818282,1752771047172,-420.0,0.00018222,2]
[372818284,1752771047183,-3400.9778085,0.00018263,2]
[372818287,1752771047192,-1680.0,0.00018312,2]
[372818289,1752771047202,-151.35,0.00018323,2]
[372818291,1752771047211,-1089.37,0.00018323,2]
[372818293,1752771047221,-1263.27,0.00018325,2]
[372818295,1752771047230,-1626.4,0.00018326,2]
[372818297,1752771047239,-460.0,0.00018326,2]
[372818299,1752771047248,-1408.43,0.00018326,2]
[372818301,1752771047257,-628.89,0.00018326,2]
[372818303,1752771047269,-460.0,0.00018326,2]
[372818305,1752771047278,-460.0,0.00018326,2]
[372818307,1752771047287,-151.0,0.00018327,2]
[372818309,1752771047297,-273.655283,0.00018327,2]
[372818311,1752771047306,-151.0,0.00018327,2]
[372818313,1752771047316,-485.52,0.00018327,2]
[372818315,1752771047325,-460.0,0.00018327,2]
[372818317,1752771047334,-151.0,0.00018327,2]
[372818319,1752771047345,-151.0,0.00018327,2]
[372818321,1752771047354,-460.0,0.00018327,2]
[372818323,1752771047363,-192.571103,0.00018327,2]
[372818324,1752771047373,-477.895332,0.00018327,2]
[372818326,1752771047382,-192.571103,0.00018327,2]
[372818328,1752771047392,-477.895332,0.00018327,2]
[372818331,1752771047401,-460.0,0.00018327,2]
[372818333,1752771047411,-460.0,0.00018327,2]
[372818335,1752771047421,-568.40030526,0.00018327,2]
[372818337,1752771047430,-151.0,0.00018327,2]
[372818339,1752771047440,-151.0,0.00018327,2]
[372818340,1752771047449,-460.0,0.00018327,2]
[372818343,1752771047459,-500.0,0.00018332,2]
[372818345,1752771047468,-260.0,0.00018411,2]
[372818347,1752771047477,-460.0,0.00018427,2]
[372818349,1752771047487,-460.0,0.00018427,2]
[372818351,1752771047497,-460.0,0.00018427,2]
[372818353,1752771047506,-576.13,0.00018427,2]
[372818355,1752771047516,-988.44,0.00018427,2]
[372818357,1752771047526,-970.87,0.00018427,2]
[372818359,1752771047541,-460.0,0.00018427,2]
[372818361,1752771047551,-460.0,0.00018427,2]
[372818362,1752771047563,-1228.61,0.00018427,2]
[372818365,1752771047576,-477.97,0.00018427,2]
[372818366,1752771047585,-2094.79,0.00018427,2]
[372818368,1752771047595,-1899.35,0.00018427,2]
[372818371,1752771047606,-7308.93380905,0.00018452,2]
[372818372,1752771047615,-151.792969,0.00018452,2]
[372818374,1752771047625,-182.833828,0.00018452,2]
[372818376,1752771047634,-182.833828,0.00018452,2]
[372818378,1752771047643,-162.254781,0.00018452,2]
[372818380,1752771047653,-162.254781,0.00018452,2]
[372818382,1752771047661,-180.496823,0.00018452,2]
[372818384,1752771047671,-180.496823,0.00018452,2]
[372818386,1752771047680,-151.0,0.00018452,2]
[372818388,1752771047689,-3829.173199,0.00018452,2]
[372818390,1752771047699,-3829.173199,0.00018452,2]
[372818392,1752771047708,-151.0,0.00018452,2]
[372818394,1752771047718,-151.0,0.00018452,2]
[372818396,1752771047727,-354.883391,0.00018452,2]
[372818398,1752771047736,-1500.0,0.00018512,2]
[372818399,1752771047747,-1089.37,0.00018597,2]
[372818401,1752771047756,-1263.27,0.00018599,2]
[372818403,1752771047765,-1626.4,0.000186,2]
[372818405,1752771047776,-460.0,0.000186,2]
[372818407,1752771047785,-1408.43,0.000186,2]
[372818409,1752771047794,-628.89,0.000186,2]
[372818411,1752771047803,-460.0,0.000186,2]
[372818413,1752771047812,-460.0,0.000186,2]
[372818415,1752771047821,-485.52,0.00018601,2]
[372818417,1752771047830,-460.0,0.00018601,2]
[372818419,1752771047839,-309.21,0.00018601,2]
[372818421,1752771047851,-545.84587836,0.00018601,2]
[372818422,1752771047861,-460.0,0.00018601,2]
[372818423,1752771047874,-25000.0,0.00018605,2]
[372818424,1752771047884,-23804.98061537,0.00018605,2]
[372818425,1752771047893,-3801.642,0.00018605,2]
[372818426,1752771047902,-151.0,0.00018605,2]
[372818427,1752771047911,-151.0,0.00018605,2]
[372818428,1752771047920,-152.694333,0.00018605,2]
[372818429,1752771047929,-151.0,0.00018605,2]
[372818430,1752771047938,-151.0,0.00018605,2]
[372818431,1752771047947,-151.0,0.00018605,2]
[372818432,1752771047956,-151.0,0.00018605,2]
[372818433,1752771047966,-151.0,0.00018605,2]
[372818434,1752771047975,-151.0,0.00018605,2]
[372818435,1752771047984,-151.0,0.00018605,2]
[372818436,1752771047993,-151.0,0.00018605,2]
[372818437,1752771048002,-151.0,0.00018605,2]
[372818438,1752771048011,-151.0,0.00018605,2]
[372818439,1752771048021,-151.0,0.00018605,2]
[372818440,1752771048030,-151.0,0.00018605,2]
[372818442,1752771048040,-151.0,0.00018605,2]
[372818443,1752771048050,-151.0,0.00018605,2]
[372818444,1752771048059,-207.4,0.00018605,2]
[372818445,1752771048069,-151.0,0.00018605,2]
[372818446,1752771048077,-151.0,0.00018605,2]
[372818448,1752771048087,-151.0,0.00018605,2]
[372818450,1752771048097,-151.0,0.00018605,2]
[372818452,1752771048107,-151.0,0.00018605,2]
[372818454,1752771048117,-151.0,0.00018605,2]
[372818456,1752771048127,-151.0,0.00018605,2]
[372818458,1752771048136,-151.0,0.00018605,2]
[372818460,1752771048146,-151.0,0.00018605,2]
[372818462,1752771048156,-151.0,0.00018605,2]
[372818464,1752771048165,-151.0,0.00018605,2]
[372818466,1752771048175,-159.14388846,0.00018605,2]
[372818468,1752771048185,-151.0,0.00018605,2]
[372818470,1752771048195,-151.0,0.00018605,2]
[372818472,1752771048205,-151.0,0.00018605,2]
[372818474,1752771048214,-151.0,0.00018605,2]
[372818475,1752771048224,-151.0,0.00018605,2]
[372818477,1752771048234,-151.0,0.00018605,2]
[372818479,1752771048243,-151.0,0.00018605,2]
[372818481,1752771048253,-151.0,0.00018605,2]
[372818483,1752771048263,-151.0,0.00018605,2]
[372818485,1752771048272,-151.0,0.00018605,2]
[372818487,1752771048282,-151.0,0.00018605,2]
[372818489,1752771048291,-243.778852,0.00018605,2]
[372818491,1752771048301,-243.778852,0.00018605,2]
[372818493,1752771048310,-400.310213,0.00018605,2]
[372818495,1752771048319,-400.310213,0.00018605,2]
[372818497,1752771048328,-528.01425676,0.00018608,2]
[372818499,1752771048337,-800.0,0.00018616,2]
[372818501,1752771048348,-3942.302754,0.0001866,2]
[372818503,1752771048358,-460.0,0.00018701,2]
[372818505,1752771048367,-460.0,0.00018701,2]
[372818507,1752771048377,-460.0,0.00018701,2]
[372818509,1752771048387,-576.13,0.00018701,2]
[372818511,1752771048396,-988.44,0.00018701,2]
[372818513,1752771048407,-425.85122302,0.00018701,2]
[372818543,1752771048682,-288.12,0.00018701,2]
[372818547,1752771048713,-886.7462414,0.00018049,2]
[372818550,1752771048725,-1544.2337586,0.00018049,2]
[372818552,1752771048734,-256.89877698,0.00018701,2]
[372818554,1752771048744,-460.0,0.00018701,2]
[372818556,1752771048753,-1228.61,0.00018701,2]
[372818558,1752771048763,-477.97,0.00018701,2]
[372818560,1752771048772,-2094.79,0.00018701,2]
[372818562,1752771048782,-1802.20367219,0.00018701,2]
[372818565,1752771048800,-97.14632781,0.00018701,2]
[372818566,1752771048811,-759.995105,0.00018702,2]
[372818569,1752771048821,-759.995105,0.00018702,2]
[372818570,1752771048830,-4088.1679559,0.00018715,2]
[372818572,1752771048840,-373.71852988,0.00018762,2]
[372818585,1752771048964,-383.1922272,0.00016681,2]
[372818587,1752771048976,-76.8077728,0.00016681,2]
[372818590,1752771048988,-460.0,0.00016955,2]
[372818592,1752771048997,-160.00434623,0.00017229,2]
[372818594,1752771049010,-299.99565377,0.00017229,2]
[372818596,1752771049020,-455.07551174,0.00018323,2]
[372818598,1752771049031,-339.02,0.00018323,2]
[372818600,1752771049043,-1636.88448826,0.00018323,2]
[372818602,1752771049053,-354.883391,0.00018452,2]
[372818604,1752771049063,-2430.98,0.00018597,2]
[372818606,1752771049073,-6935.21527917,0.00018762,2]
[372818609,1752771049084,-437.78817027,0.0001877,2]
[372818610,1752771049097,-180.0,0.00018812,2]
[372818612,1752771049107,-382.567473,0.00018848,2]
[372818615,1752771049117,-151.0,0.00018848,2]
[372818616,1752771049128,-151.0,0.00018848,2]
[372818619,1752771049138,-151.0,0.00018848,2]
[372818620,1752771049148,-151.0,0.00018848,2]